fUSD/lending_fUSD_20260417
["ID","MTS","AMOUNT","RATE_DAILY","PERIOD"]
[420660251,1776438650862,-152.0,0.00011687,7]
[420660252,1776438650871,-500.0,0.000117,4]
[420660253,1776438650882,-350.0,0.0001173,2]
[420660254,1776438650891,-6478.0,0.00011742,2]
[420660255,1776438650902,-1986.50604602,0.0001176,2]
[420660256,1776438650911,-599.60298507,0.00011788,2]
[420660257,1776438650920,-670.58624095,0.00011788,2]
[420660258,1776438650930,-209.40437684,0.00011789,2]
[420660259,1776438650939,-500.0,0.00011789,2]
[420660260,1776438650948,-418.0,0.00011793,3]
[420660261,1776438650957,-429.0,0.000118,2]
[420660262,1776438650967,-900.0,0.000118,4]
[420660263,1776438650976,-150.0,0.0001182,2]
[420660264,1776438650985,-290.6571589,0.00011848,2]
[420660265,1776438650994,-350.0,0.00011861,2]
[420660266,1776438651003,-195.55,0.00011872,2]
[420660267,1776438651013,-6248.0,0.00011876,2]
[420660268,1776438651022,-2000.0,0.0001188,2]
[420660269,1776438651031,-2000.0,0.0001188,2]
[420660270,1776438651040,-2000.0,0.0001188,2]
[420660271,1776438651049,-2000.0,0.0001188,2]
[420660272,1776438651058,-862.04068,0.0001188,2]
[420660273,1776438651068,-862.04068,0.0001188,2]
[420660274,1776438651507,-500.0,0.000119,2]
[420660275,1776438651517,-500.0,0.000119,2]
[420660276,1776438651527,-500.0,0.000119,2]
[420660277,1776438651536,-500.0,0.000119,2]
[420660278,1776438651546,-500.0,0.000119,2]
[420660279,1776438651555,-500.0,0.000119,2]
[420660280,1776438651564,-500.0,0.000119,2]
[420660281,1776438651573,-862.0,0.000119,2]
[420660282,1776438651582,-500.0,0.000119,2]
[420660283,1776438651591,-500.0,0.000119,2]
[420660284,1776438651600,-688.0,0.000119,2]
[420660285,1776438651609,-946.84251642,0.000119,2]
[420660286,1776438651618,-377.0,0.00011902,2]
[420660287,1776438651628,-1000.0,0.00011928,2]
[420660288,1776438651638,-3759.0,0.00011942,2]
[420660289,1776438651647,-150.1566667,0.00011951,2]
[420660290,1776438651657,-1657.89427808,0.0001197,2]
[420660291,1776438651666,-1000.0,0.0001197,2]
[420660292,1776438651676,-5101.840582,0.00011973,2]
[420660293,1776438651685,-5101.840582,0.00011973,2]
[420660294,1776438651695,-5101.840582,0.00011973,2]
[420660295,1776438651705,-5101.840582,0.00011973,2]
[420660296,1776438651714,-200.0,0.0001199,2]
[420660297,1776438651723,-452.27556448,0.0001199,2]
[420660298,1776438651733,-151.0,0.00011992,2]
[420660299,1776438651743,-151.0,0.00011992,2]
[420660300,1776438651752,-151.0,0.00011992,2]
[420660301,1776438651761,-350.0,0.00011992,2]
[420660302,1776438651771,-155.0,0.00011995,3]
[420660303,1776438651780,-151.0,0.00011997,2]
[420660304,1776438651790,-151.0,0.00011997,2]
[420660305,1776438651799,-300.0,0.00011999,2]
[420660306,1776438651808,-124636.30531835,0.00012,2]
[420660307,1776438651888,-683.24999999,0.00012,2]
[420660308,1776438651945,-12651.11061015,0.00012,2]
[420660309,1776438708871,150.0,0.00016209,120]
[420660311,1776438748315,218.55,7.226e-05,2]
[420660315,1776438861464,-293.0,7.226e-05,3]
[420660317,1776438907281,278.0,7.226e-05,3]
[420660319,1776438968053,264.0,7.226e-05,3]
[420660321,1776439033134,251.0,7.226e-05,3]
[420660324,1776439093954,275.0,7.226e-05,3]
[420660328,1776439146607,262.0,7.226e-05,3]
[420660329,1776439152944,-272.098,7.786e-05,2]
[420660331,1776439229812,-156.0,7.226e-05,3]
[420660333,1776439234880,-249.0,7.525e-05,2]
[420660336,1776439250208,-170.06,7.525e-05,2]
[420660337,1776439280408,-270.0,7.226e-05,3]
[420660339,1776439327377,257.0,7.226e-05,3]
[420660341,1776439391720,244.0,7.226e-05,3]
[420660344,1776439448964,232.0,7.226e-05,3]
[420660345,1776439506083,156.0,7.226e-05,3]
[420660346,1776439510045,253.0,7.226e-05,3]
[420660347,1776439569311,241.0,7.226e-05,3]
[420660348,1776439627527,229.0,7.226e-05,3]
[420660350,1776439659755,-6836.16887674,7.847e-05,2]
[420660351,1776439659771,-10000.01,7.847e-05,2]
[420660352,1776439668458,-10000.01,7.847e-05,2]
[420660353,1776439668559,-10000.01,7.847e-05,2]
[420660354,1776439726843,-258.0,7.226e-05,3]
[420660355,1776439726872,-162.0,7.226e-05,3]
[420660356,1776439729673,-700.0,7.7e-05,2]
[420660357,1776439746352,-1400.0,7.8e-05,2]
[420660358,1776439747716,-450.00254005,7.808e-05,2]
[420660359,1776439749004,245.0,7.226e-05,3]
[420660360,1776439750194,-293.40447324,7.808e-05,2]
[420660363,1776439761226,-252.0,7.808e-05,2]
[420660364,1776439779328,1613.5,7.182e-05,2]
[420660365,1776439799544,-2133.41701329,7.808e-05,2]
[420660366,1776439799586,-3874.67597342,7.808e-05,2]
[420660367,1776439799855,-1858.5,7.808e-05,2]
[420660368,1776439811540,233.0,7.808e-05,3]
[420660369,1776439812054,156.0,7.808e-05,3]
[420660370,1776439814723,-1200.0,7.822e-05,2]
[420660396,1776439832767,-483.96697237,7.823e-05,2]
[420660397,1776439832779,-16.5527922,7.823e-05,2]
[420660398,1776439832789,-150.0,7.823e-05,2]
[420660399,1776439832798,-246.22448849,7.823e-05,2]
[420660400,1776439832834,-5.77551151,7.823e-05,2]
[420660401,1776439832844,-250.0,7.828e-05,2]
[420660402,1776439832854,-127.05748849,7.846e-05,2]
[420660403,1776439832866,-172.94251151,7.846e-05,2]
[420660404,1776439832875,-150.0,7.846e-05,2]
[420660405,1776439832884,-348.2809455,7.846e-05,2]
[420660406,1776439832895,-500.0,7.846e-05,2]
[420660407,1776439832904,-222.48028132,7.846e-05,2]
[420660408,1776439832913,-307.88992694,7.846e-05,2]
[420660409,1776439832923,-21144.37451938,7.846e-05,2]
[420660410,1776439832932,-21144.37451938,7.846e-05,2]
[420660411,1776439832942,-21144.37451938,7.846e-05,2]
[420660412,1776439832952,-21144.37451938,7.846e-05,2]
[420660413,1776439832962,-21144.37451938,7.846e-05,2]
[420660414,1776439832971,-265.92121576,7.846e-05,2]
[420660415,1776439832981,-500.24551543,7.846e-05,2]
[420660416,1776439832991,-21144.37451936,7.846e-05,2]
[420660417,1776439833001,-250.0,7.847e-05,2]
[420660418,1776439833012,-150.0,7.847e-05,2]
[420660419,1776439833022,-948184.3825537,7.847e-05,2]
[420660420,1776439833035,-2687.07064256,7.847e-05,2]
[420660421,1776439833047,-15833.42003306,7.847e-05,2]
[420660422,1776439833063,-584.79955105,7.847e-05,2]
[420660423,1776439833074,-1497.0,7.847e-05,2]
[420660424,1776439833086,-309.88642084,7.847e-05,2]
[420660425,1776439833113,-387.105,7.847e-05,2]
[420660426,1776439833125,-1615.14536651,7.847e-05,2]
[420660427,1776439833136,-1191.33537784,7.847e-05,2]
[420660428,1776439833152,-5178.2669529,7.847e-05,2]
[420660429,1776439833163,-3070.08204455,7.847e-05,2]
[420660430,1776439833175,-987.95536,7.847e-05,2]
[420660431,1776439833187,-2749.54117754,7.847e-05,2]
[420660436,1776439837888,-300.0,7.845e-05,2]
[420660437,1776439837899,-3121.10597051,7.847e-05,2]
[420660438,1776439837999,-1976.09516634,7.847e-05,2]
[420660439,1776439838058,-14162.908,7.847e-05,2]
[420660440,1776439838069,-1257.68700571,7.847e-05,2]
[420660441,1776439838114,-24572.76636241,7.847e-05,2]
[420660442,1776439838126,-1386.35636678,7.847e-05,2]
[420660443,1776439838138,-1807.85877248,7.847e-05,2]
[420660465,1776439839980,-13598.67564592,7.847e-05,2]
[420660466,1776439839991,-549.06168683,7.847e-05,2]
[420660467,1776439840004,-759.7345746,7.847e-05,2]
[420660468,1776439840024,-69022.59168721,7.847e-05,2]
[420660469,1776439840306,-1021.69111871,7.847e-05,2]
[420660470,1776439840317,-10646.4202435,7.847e-05,2]
[420660471,1776439840362,-2019.91513355,7.847e-05,2]
[420660472,1776439840373,-417.30805811,7.847e-05,2]
[420660473,1776439840384,-398.23705892,7.847e-05,2]
[420660474,1776439840420,-743.40701329,7.847e-05,2]
[420660475,1776439840432,-2039.28029664,7.847e-05,2]
[420660476,1776439840443,-1435.87614288,7.847e-05,2]
[420660477,1776439840454,-544.2039824,7.847e-05,2]
[420660478,1776439840479,-393.51575662,7.847e-05,2]
[420660526,1776439845672,-1478.68059726,7.847e-05,2]
[420660527,1776439845683,-399.48050875,7.847e-05,2]
[420660528,1776439845701,-1771.7918838,7.847e-05,2]
[420660529,1776439845731,-12087.44434569,7.847e-05,2]
[420660530,1776439845788,-819.23121782,7.847e-05,2]
[420660531,1776439845798,-221218.35306814,7.847e-05,2]
[420660532,1776439845845,-2405.08319596,7.847e-05,2]
[420660533,1776439845856,-910.07126,7.847e-05,2]
[420660534,1776439845937,-42701.43432671,7.847e-05,2]
[420660535,1776439845958,-489.70727826,7.847e-05,2]
[420660536,1776439846083,-314.55,7.847e-05,2]
[420660537,1776439846096,-2806.73637077,7.847e-05,2]
[420660538,1776439846657,-465.6227012,7.847e-05,2]
[420660539,1776439846713,-39988.44282873,7.847e-05,2]
[420660540,1776439846724,-6246.70164589,7.847e-05,2]
[420660541,1776439846770,-11825.81456531,7.847e-05,2]
[420660545,1776439846883,-1558.46865625,7.847e-05,2]
[420660546,1776439846895,-842715.55234876,7.847e-05,2]
[420660547,1776439846904,-400.0,7.849e-05,7]
[420660548,1776439846919,-188.45,7.849e-05,7]
[420660549,1776439846928,-259.88460929,7.855e-05,2]
[420660550,1776439846938,-2229.708,7.886e-05,2]
[420660551,1776439846947,-233.445,7.886e-05,2]
[420660552,1776439846956,-44.9971769,7.9e-05,2]
[420660559,1776439878542,-9611.01,7.83e-05,2]
[420660560,1776439878734,-10000.01,7.83e-05,2]
[420660561,1776439878877,-10000.01,7.83e-05,2]
[420660562,1776439878989,-10000.01,7.83e-05,2]
[420660563,1776439879111,-10000.01,7.83e-05,2]
[420660564,1776439879241,-10000.01,7.83e-05,2]
[420660565,1776439880003,-10000.01,7.83e-05,2]
[420660566,1776439880032,-10000.01,7.83e-05,2]
[420660567,1776439880047,-10000.01,7.83e-05,2]
[420660568,1776439884368,-10000.01,7.83e-05,2]
[420660570,1776440018049,3084.59,7.197e-05,2]
[420660571,1776440042021,-150.0,7.746e-05,2]
[420660572,1776440042050,-300.0,7.746e-05,2]
[420660573,1776440042079,-251.0,7.746e-05,2]
[420660574,1776440042802,-300.0,7.745e-05,2]
[420660575,1776440042812,-8298.01,7.746e-05,2]
[420660576,1776440042827,-4345.91822483,7.746e-05,2]
[420660577,1776440042836,-5654.09177517,7.747e-05,2]
[420660578,1776440043908,500.0,7.193e-05,2]
[420660579,1776440047011,-10000.01,7.747e-05,2]
[420660580,1776440047394,-10000.01,7.747e-05,2]
[420660581,1776440047466,532.0,7.197e-05,3]
[420660583,1776440051510,10000.01,7.214e-05,2]
[420660584,1776440051534,118.87,7.214e-05,2]
[420660585,1776440054130,162.0,7.197e-05,3]
[420660587,1776440107474,606.0,7.197e-05,3]
[420660588,1776440108147,157.0,7.197e-05,3]
[420660590,1776440113217,163.0,7.197e-05,3]
[420660595,1776440171500,624.0,7.197e-05,3]
[420660615,1776440227664,152.0,7.197e-05,3]
[420660616,1776440228905,163.0,7.197e-05,3]
[420660652,1776440252889,-300.0,7.729e-05,2]
[420660653,1776440252920,-300.0,7.729e-05,2]
[420660654,1776440252949,-251.0,7.729e-05,2]
[420660655,1776440252977,-2070.0397,7.73e-05,2]
[420660656,1776440253514,-4157.9306,7.73e-05,2]
[420660657,1776440253543,-500.0,7.73e-05,2]
[420660659,1776440255586,-1130.4377,7.73e-05,2]
[420660660,1776440255703,-760.1643,7.73e-05,2]
[420660661,1776440258518,-10000.01,7.73e-05,2]
[420660662,1776440258638,-10000.01,7.73e-05,2]
[420660663,1776440285117,623.0,7.197e-05,3]
[420660664,1776440291359,163.0,7.197e-05,3]
[420660665,1776440345892,627.0,7.197e-05,3]
[420660668,1776440412795,172.0,7.197e-05,3]
[420660669,1776440413102,174.0,7.197e-05,3]
[420660670,1776440472861,684.0,7.197e-05,3]
[420660671,1776440480344,1861.84,6.942e-05,2]
[420660672,1776440532747,650.0,7.197e-05,3]
[420660673,1776440593216,647.0,7.197e-05,3]
[420660674,1776440647336,614.0,7.197e-05,3]
[420660681,1776440711861,659.0,7.197e-05,3]
[420660682,1776440711896,158.0,7.197e-05,3]
[420660683,1776440716074,1500.0,6.938e-05,2]
[420660684,1776440716431,150.0,7.027e-05,2]
[420660685,1776440716488,150.0,7.05e-05,2]
[420660686,1776440716561,150.0,7.073e-05,2]
[420660687,1776440716608,150.0,7.096e-05,2]
[420660688,1776440716676,150.0,7.119e-05,2]
[420660689,1776440716747,150.0,7.142e-05,2]
[420660690,1776440716850,150.0,7.165e-05,2]
[420660691,1776440716886,150.0,7.188e-05,2]
[420660692,1776440716954,150.0,7.211e-05,2]
[420660693,1776440721850,150.0,7.225e-05,2]
[420660694,1776440723225,150.0,7.027e-05,2]
[420660695,1776440723272,150.0,7.027e-05,2]
[420660696,1776440723312,150.0,7.027e-05,2]
[420660697,1776440723343,150.0,7.045e-05,2]
[420660698,1776440723386,150.0,7.063e-05,2]
[420660699,1776440723417,150.0,7.081e-05,2]
[420660700,1776440723454,150.0,7.098e-05,2]
[420660701,1776440723514,150.0,7.116e-05,2]
[420660702,1776440723565,150.0,7.134e-05,2]
[420660703,1776440723718,150.0,7.152e-05,2]
[420660704,1776440723764,150.0,7.169e-05,2]
[420660705,1776440723803,150.0,7.187e-05,2]
[420660706,1776440723845,150.0,7.205e-05,2]
[420660707,1776440723883,150.0,7.223e-05,2]
[420660708,1776440729076,150.0,7.027e-05,2]
[420660709,1776440729118,150.0,7.098e-05,2]
[420660710,1776440729183,150.0,7.169e-05,2]
[420660711,1776440729876,150.0,7.027e-05,2]
[420660712,1776440729905,150.0,7.079e-05,2]
[420660713,1776440729971,150.0,7.132e-05,2]
[420660714,1776440730049,150.0,7.184e-05,2]
[420660715,1776440734058,150.0,7.027e-05,2]
[420660716,1776440734091,150.0,7.041e-05,2]
[420660717,1776440734122,150.0,7.055e-05,2]
[420660718,1776440734157,150.0,7.068e-05,2]
[420660719,1776440734199,150.0,7.082e-05,2]
[420660720,1776440734237,150.0,7.096e-05,2]
[420660721,1776440734275,150.0,7.11e-05,2]
[420660722,1776440734313,150.0,7.123e-05,2]
[420660723,1776440734350,150.0,7.137e-05,2]
[420660724,1776440734388,150.0,7.151e-05,2]
[420660725,1776440734430,150.0,7.164e-05,2]
[420660726,1776440734472,122.01,7.178e-05,2]
[420660727,1776440734494,27.99,7.178e-05,2]
[420660728,1776440734533,150.0,7.192e-05,2]
[420660729,1776440734581,150.0,7.205e-05,2]
[420660730,1776440734612,150.0,7.219e-05,2]
[420660731,1776440742470,150.0,7.027e-05,2]
[420660732,1776440742716,150.0,7.027e-05,2]
[420660733,1776440742789,150.0,7.049e-05,2]
[420660734,1776440742858,150.0,7.071e-05,2]
[420660735,1776440742893,150.0,7.092e-05,2]
[420660736,1776440742948,150.0,7.114e-05,2]
[420660737,1776440743018,150.0,7.136e-05,2]
[420660738,1776440743165,150.0,7.179e-05,2]
[420660739,1776440743243,150.0,7.201e-05,2]
[420660740,1776440743307,150.0,7.223e-05,2]
[420660741,1776440746694,150.0,7.027e-05,2]
[420660742,1776440746786,150.0,7.184e-05,2]
[420660743,1776440746824,150.0,7.027e-05,2]
[420660744,1776440748684,150.0,7.158e-05,2]
[420660745,1776440753172,150.0,7.027e-05,2]
[420660746,1776440753215,150.0,7.046e-05,2]
[420660747,1776440753288,150.0,7.065e-05,2]
[420660748,1776440753356,150.0,7.083e-05,2]
[420660749,1776440753443,150.0,7.102e-05,2]
[420660750,1776440753494,150.0,7.12e-05,2]
[420660751,1776440753570,150.0,7.139e-05,2]
[420660752,1776440753639,150.0,7.158e-05,2]
[420660753,1776440753731,150.0,7.176e-05,2]
[420660754,1776440753779,150.0,7.195e-05,2]
[420660755,1776440753853,150.0,7.213e-05,2]
[420660756,1776440757961,201.29039859,7.027e-05,2]
[420660757,1776440757991,150.0,7.027e-05,2]
[420660758,1776440758039,150.0,7.223e-05,2]
[420660759,1776440758145,150.0,7.027e-05,2]
[420660760,1776440758185,150.0,7.165e-05,2]
[420660761,1776440758216,150.0,7.119e-05,2]
[420660762,1776440758268,150.0,7.211e-05,2]
[420660763,1776440758302,150.0,7.073e-05,2]
[420660764,1776440765777,653.0,7.197e-05,3]
[420660766,1776440826065,645.0,7.197e-05,3]
[420660767,1776440887617,636.0,7.197e-05,3]
[420660768,1776440900126,358.9294023,7.225e-05,2]
[420660769,1776440900157,208.85422176,7.225e-05,2]
[420660771,1776440945708,627.0,7.197e-05,3]
[420660772,1776440973269,-150.0,7.232e-05,2]
[420660773,1776440973290,-245.0,7.232e-05,2]
[420660774,1776440973311,-193.71881067,7.232e-05,2]
[420660775,1776440973333,-150.0,7.233e-05,2]
[420660776,1776440973356,-400.0,7.234e-05,2]
[420660777,1776440973378,-186.8,7.234e-05,2]
[420660778,1776440973399,-150.0,7.234e-05,2]
[420660779,1776440973419,-150.0,7.236e-05,2]
[420660780,1776440973441,-150.0,7.24e-05,2]
[420660781,1776440973461,-150.0,7.24e-05,2]
[420660782,1776440973482,-150.0,7.242e-05,2]
[420660783,1776440973503,-150.0,7.244e-05,2]
[420660784,1776440973524,-150.0,7.247e-05,2]
[420660785,1776440973546,-150.0,7.25e-05,2]
[420660786,1776440973569,-150.0,7.257e-05,2]
[420660787,1776440973590,-150.0,7.257e-05,2]
[420660788,1776440973612,-150.0,7.258e-05,2]
[420660789,1776440973633,-150.0,7.259e-05,2]
[420660790,1776440973654,-150.0,7.26e-05,2]
[420660791,1776440973677,-326.91,7.263e-05,2]
[420660792,1776440973696,-150.0,7.266e-05,2]
[420660793,1776440973717,-150.0,7.269e-05,2]
[420660794,1776440973736,-300.0,7.271e-05,2]
[420660795,1776440973758,-150.0,7.274e-05,2]
[420660796,1776440973778,-150.0,7.276e-05,2]
[420660797,1776440973799,-150.0,7.276e-05,2]
[420660798,1776440973820,-500.0,7.276e-05,2]
[420660799,1776440973841,-74.86776733,7.276e-05,2]
[420660800,1776440976438,-120.13223267,7.276e-05,2]
[420660801,1776440976467,-156.0,7.277e-05,2]
[420660802,1776440976497,-150.0,7.28e-05,2]
[420660803,1776440976525,-150.0,7.287e-05,2]
[420660804,1776440976552,-300.0,7.287e-05,2]
[420660805,1776440976582,-150.0,7.288e-05,2]
[420660806,1776440976611,-150.0,7.288e-05,2]
[420660807,1776440976639,-150.0,7.288e-05,2]
[420660808,1776440976666,-150.0,7.288e-05,2]
[420660809,1776440976694,-150.0,7.288e-05,2]
[420660810,1776440976722,-150.0,7.293e-05,2]
[420660811,1776440976750,-150.0,7.294e-05,2]
[420660812,1776440976778,-150.0,7.301e-05,2]
[420660813,1776440976806,-150.0,7.303e-05,2]
[420660814,1776440976836,-150.0,7.303e-05,2]
[420660815,1776440976864,-150.0,7.306e-05,2]
[420660816,1776440976892,-150.0,7.309e-05,2]
[420660817,1776440976919,-150.0,7.31e-05,2]
[420660818,1776440976947,-150.0,7.311e-05,2]
[420660819,1776440976975,-150.0,7.311e-05,2]
[420660820,1776440977003,-150.0,7.315e-05,2]
[420660821,1776440977030,-150.0,7.325e-05,2]
[420660822,1776440977058,-150.0,7.326e-05,2]
[420660823,1776440977088,-150.0,7.327e-05,2]
[420660824,1776440977119,-150.0,7.329e-05,2]
[420660825,1776440977147,-150.0,7.329e-05,2]
[420660826,1776440977177,-150.0,7.331e-05,2]
[420660827,1776440977206,-150.0,7.34e-05,2]
[420660828,1776440977234,-150.0,7.34e-05,2]
[420660829,1776440977264,-150.0,7.342e-05,2]
[420660830,1776440977293,-150.0,7.343e-05,2]
[420660831,1776440977322,-150.0,7.344e-05,2]
[420660832,1776440977970,-150.0,7.347e-05,2]
[420660833,1776440978001,-150.0,7.349e-05,2]
[420660834,1776440978032,-150.0,7.349e-05,2]
[420660835,1776440978064,-150.0,7.353e-05,2]
[420660836,1776440978096,-150.0,7.356e-05,2]
[420660837,1776440978130,-150.0,7.361e-05,2]
[420660838,1776440978161,-150.0,7.362e-05,2]
[420660839,1776440978192,-150.0,7.365e-05,2]
[420660840,1776440978222,-150.0,7.37e-05,2]
[420660841,1776440978251,-150.0,7.372e-05,2]
[420660842,1776440978281,-150.0,7.374e-05,2]
[420660843,1776440978312,-150.0,7.378e-05,2]
[420660844,1776440978348,-150.0,7.381e-05,2]
[420660845,1776440978378,-150.0,7.382e-05,2]
[420660846,1776440978407,-150.0,7.382e-05,2]
[420660847,1776440978437,-150.0,7.384e-05,2]
[420660848,1776440978467,-150.0,7.392e-05,2]
[420660849,1776440978497,-150.0,7.395e-05,2]
[420660850,1776440978527,-150.0,7.395e-05,2]
[420660851,1776440978556,-150.0,7.395e-05,2]
[420660852,1776440978589,-150.0,7.396e-05,2]
[420660853,1776440978619,-150.0,7.397e-05,2]
[420660854,1776440978648,-150.0,7.399e-05,2]
[420660855,1776440978678,-150.0,7.4e-05,2]
[420660856,1776440978707,-150.0,7.411e-05,2]
[420660857,1776440978737,-150.0,7.413e-05,2]
[420660858,1776440978766,-150.0,7.418e-05,2]
[420660859,1776440978796,-150.0,7.418e-05,2]
[420660860,1776440978824,-150.0,7.418e-05,2]
[420660861,1776440978855,-150.0,7.418e-05,2]
[420660862,1776440978885,-150.0,7.418e-05,2]
[420660863,1776440978914,-150.0,7.418e-05,2]
[420660864,1776440978944,-150.0,7.425e-05,2]
[420660865,1776440981374,-150.0,7.43e-05,2]
[420660866,1776440981404,-150.0,7.436e-05,2]
[420660867,1776440981433,-150.0,7.436e-05,2]
[420660868,1776440981466,-150.0,7.438e-05,2]
[420660869,1776440981497,-150.0,7.439e-05,2]
[420660870,1776440981527,-150.0,7.441e-05,2]
[420660871,1776440981556,-150.0,7.441e-05,2]
[420660872,1776440981588,-150.0,7.444e-05,2]
[420660873,1776440981619,-150.0,7.447e-05,2]
[420660874,1776440981650,-150.0,7.452e-05,2]
[420660875,1776440981679,-150.0,7.453e-05,2]
[420660876,1776440981708,-150.0,7.453e-05,2]
[420660877,1776440981738,-150.0,7.455e-05,2]
[420660878,1776440982263,-150.0,7.461e-05,2]
[420660879,1776440982294,-150.0,7.464e-05,2]
[420660880,1776440982329,-150.0,7.464e-05,2]
[420660881,1776440982360,-150.0,7.466e-05,2]
[420660882,1776440982391,-150.0,7.471e-05,2]
[420660883,1776440982420,-150.0,7.474e-05,2]
[420660884,1776440982460,-150.0,7.479e-05,2]
[420660885,1776440982496,-150.0,7.481e-05,2]
[420660886,1776440982529,-150.0,7.483e-05,2]
[420660887,1776440982562,-150.0,7.487e-05,2]
[420660888,1776440982599,-150.0,7.487e-05,2]
[420660889,1776440982632,-150.0,7.489e-05,2]
[420660890,1776440982667,-150.0,7.492e-05,2]
[420660891,1776440982698,-150.0,7.493e-05,2]
[420660892,1776440982728,-250.0,7.495e-05,2]
[420660893,1776440982759,-150.0,7.496e-05,2]
[420660894,1776440982789,-150.0,7.496e-05,2]
[420660895,1776440982818,-150.0,7.498e-05,2]
[420660896,1776440982851,-150.0,7.505e-05,2]
[420660897,1776440982882,-50.01,7.507e-05,2]
[420660898,1776440983110,-99.99,7.507e-05,2]
[420660899,1776440983143,-150.0,7.507e-05,2]
[420660900,1776440983175,-150.0,7.51e-05,2]
[420660901,1776440983206,-150.0,7.511e-05,2]
[420660902,1776440983238,-150.0,7.515e-05,2]
[420660903,1776440991109,-6750.01,7.517e-05,2]
[420660904,1776440993434,-2370.715312,7.517e-05,2]
[420660905,1776440993444,-7629.294688,7.518e-05,2]
[420660906,1776440993851,-10000.01,7.518e-05,2]
[420660907,1776440993867,-2993.734912,7.518e-05,2]
[420660908,1776440993876,-150.0,7.521e-05,2]
[420660909,1776440993887,-150.0,7.524e-05,2]
[420660910,1776440993897,-150.0,7.524e-05,2]
[420660911,1776440993907,-150.0,7.526e-05,2]
[420660912,1776440993917,-150.0,7.529e-05,2]
[420660913,1776440993926,-150.0,7.532e-05,2]
[420660914,1776440993936,-150.0,7.533e-05,2]
[420660915,1776440993945,-150.0,7.533e-05,2]
[420660916,1776440993955,-150.0,7.534e-05,2]
[420660917,1776440993964,-150.0,7.542e-05,2]
[420660918,1776440993974,-150.0,7.548e-05,2]
[420660919,1776440993983,-150.0,7.548e-05,2]
[420660920,1776440993992,-150.0,7.548e-05,2]
[420660921,1776440994002,-150.0,7.548e-05,2]
[420660922,1776440994012,-150.0,7.548e-05,2]
[420660923,1776440994022,-150.0,7.549e-05,2]
[420660924,1776440994032,-150.0,7.556e-05,2]
[420660925,1776440994042,-150.0,7.56e-05,2]
[420660926,1776440994052,-150.0,7.562e-05,2]
[420660927,1776440994062,-150.0,7.566e-05,2]
[420660928,1776440994072,-150.0,7.567e-05,2]
[420660929,1776440994083,-150.0,7.57e-05,2]
[420660930,1776440994093,-150.0,7.571e-05,2]
[420660931,1776440994103,-150.0,7.575e-05,2]
[420660932,1776440994112,-150.0,7.578e-05,2]
[420660933,1776440994122,-150.0,7.579e-05,2]
[420660934,1776440994131,-150.0,7.579e-05,2]
[420660935,1776440994141,-150.0,7.583e-05,2]
[420660936,1776440994150,-150.0,7.585e-05,2]
[420660937,1776440994160,-150.0,7.589e-05,2]
[420660938,1776440994170,-150.0,7.591e-05,2]
[420660939,1776440994179,-150.0,7.595e-05,2]
[420660940,1776440994189,-150.0,7.595e-05,2]
[420660941,1776440994198,-150.0,7.6e-05,2]
[420660942,1776440994208,-150.0,7.6e-05,2]
[420660943,1776440994218,-150.0,7.602e-05,2]
[420660944,1776440994228,-150.0,7.603e-05,2]
[420660945,1776440994237,-150.0,7.604e-05,2]
[420660946,1776440994247,-150.0,7.613e-05,2]
[420660947,1776440994256,-150.0,7.613e-05,2]
[420660948,1776440994266,-150.0,7.613e-05,2]
[420660949,1776440994276,-150.0,7.616e-05,2]
[420660950,1776440994285,-150.0,7.617e-05,2]
[420660951,1776440994295,-150.0,7.622e-05,2]
[420660952,1776440994304,-150.0,7.624e-05,2]